[Event "NOR-ch Various 2019"]
[Site "Larvik"]
[Date "2019.07.09"]
[Round "4.7"]
[White "Akali, Mark"]
[Black "Oldernes, Lars-Arne"]
[Result "0-1"]
[ECO "C42"]
[WhiteElo "1730"]
[BlackElo "1684"]
[Annotator "NA"]
[PlyCount "126"]
[EventDate "2019.07.06"]
[EventType "swiss"]
[EventCountry "NOR"]
[SourceTitle "playchess.com"]
[Source "ChessBase"]
[SourceQuality "1"]
[TimeControl "40/5400+30:1800+30"]

1. e4 {[%emt 0:10:07]} e5 {[%emt 0:02:57]} 2. Nf3 {[%emt 0:00:05]} Nf6 {[%emt 0:02:20]} 3. Nc3 Bb4 {[%emt 0:03:52]} 4. Bc4 {[%emt 0:02:23]} O-O {[%emt 0:00:00]} 5. O-O {[%emt 0:05:00]} d6 {[%emt 0:05:44]} 6. d3 {[%emt 0:01:09]} Be6 {[%emt 0:01:22]} 7. Nd5 {[%emt 0:03:50]} Nxd5 {[%emt 0:01:15]} 8. exd5 {[%emt 0:00:22]} Bg4 {[%emt 0:00:59]} 9. h3 {[%emt 0:01:27]} Bh5 {[%emt 0:00:23]} 10. g4 {[%emt 0:00:31]} Bg6 {[%emt 0:00:23]} 11. a4 {[%emt 0:01:11]} a5 {[%emt 0:04:51]} 12. Bg5 {[%emt 0:03:51]} f6 {[%emt 0:03:11]} 13. Be3 {[%emt 0:00:29]} Nd7 {[%emt 0:00:34]} 14. Nh4 {[%emt 0:00:58]} f5 {[%emt 0:05:31]} 15. Nxg6 {[%emt 0:02:56]} hxg6 {[%emt 0:00:39]} 16. f4 {[%emt 0:00:51]} Qh4 {[%emt 0:04:19]} 17. Kg2 {[%emt 0:02:52]} exf4 {[%emt 0:09:20]} 18. Bxf4 {[%emt 0:04:02]} Nf6 {[%emt 0:12:42]} 19. Bg3 {[%emt 0:13:05]} Qg5 {[%emt 0:02:00]} 20. Bf4 {[%emt 0:01:42]} Qh4 {[%emt 0:00:08]} 21. Bg3 {[%emt 0:03:06]} Qh6 {[%emt 0:03:14]} 22. c3 {[%emt 0:00:25]} fxg4 {[%emt 0:01:06]} 23. hxg4 {[%emt 0:00:19]} Bc5 {[%emt 0:08:22]} 24. d4 {[%emt 0:02:36]} Bb6 {[%emt 0:02:55]} 25. Rf4 {[%emt 0:02:15]} g5 {[%emt 0:02:51]} 26. Rf3 {[%emt 0:05:40]} Ne4 {[%emt 0:00:47]} 27. Bd3 {[%emt 0:01:05]} Nxg3 {[%emt 0:01:54]} 28. Rxg3 {[%emt 0:00:40]} c5 {[%emt 0:04:39]} 29. Bf5 {[%emt 0:07:22]} Rxf5 {[%emt 0:08:28]} 30. gxf5 {[%emt 0:00:02]} cxd4 {[%emt 0:00:08]} 31. cxd4 {[%emt 0:02:07]} Qf6 {[%emt 0:01:24]} 32. Qg4 {[%emt 0:01:55]} Bxd4 {[%emt 0:02:23]} 33. Qxg5 {[%emt 0:01:34]} Qe5 {[%emt 0:01:13]} 34. f6 {[%emt 0:03:10]} Qxf6 {[%emt 0:01:34]} 35. Qxf6 {[%emt 0:00:03]} Bxf6 {[%emt 0:00:04]} 36. Rb1 {[%emt 0:00:53]} Re8 {[%emt 0:00:30]} 37. Rb3 {[%emt 0:03:03]} Re4 {[%emt 0:00:30]} 38. Rxb7 {[%emt 0:00:48]} Rxa4 {[%emt 0:00:06]} 39. b4 {[%emt 0:01:03]} axb4 {[%emt 0:00:19]} 40. R1xb4 {[%emt 0:00:07]} Ra2+ {[%emt 0:00:23]} 41. Kf3 {[%emt 0:30:05]} Kh7 {[%emt 0:30:52]} 42. Ke4 {[%emt 0:03:33]} Kg6 {[%emt 0:00:11]} 43. Rb3 {[%emt 0:00:50]} Re2+ {[%emt 0:00:42]} 44. Kf3 {[%emt 0:01:34]} Rd2 {[%emt 0:00:32]} 45. Ke4 {[%emt 0:01:58]} Rd4+ {[%emt 0:00:11]} 46. Ke3 {[%emt 0:00:57]} Rxd5 {[%emt 0:00:09]} 47. Rd3 {[%emt 0:00:13]} Rxd3+ {[%emt 0:02:36]} 48. Kxd3 {[%emt 0:00:27]} Kf5 {[%emt 0:00:08]} 49. Ke3 {[%emt 0:01:08]} Be5 {[%emt 0:01:55]} 50. Rf7+ {[%emt 0:00:48]} Ke6 {[%emt 0:01:14]} 51. Rf8 {[%emt 0:00:18]} d5 {[%emt 0:00:55]} 52. Re8+ {[%emt 0:04:30]} Kf5 {[%emt 0:00:10]} 53. Kf3 {[%emt 0:01:33]} d4 {[%emt 0:00:00]} 54. Rf8+ {[%emt 0:00:00]} Bf6 {[%emt 0:00:00]} 55. Rf7 {[%emt 0:00:00]} g5 {[%emt 0:00:00]} 56. Rxf6+ {[%emt 0:00:00]} Kxf6 {[%emt 0:00:00]} 57. Ke4 {[%emt 0:00:00]} Ke6 {[%emt 0:00:00]} 58. Kxd4 {[%emt 0:00:00]} Kf5 {[%emt 0:00:00]} 59. Ke3 {[%emt 0:00:00]} Kg4 {[%emt 0:00:00]} 60. Kf2 {[%emt 0:00:00]} Kh3 {[%emt 0:00:00]} 61. Kg1 {[%emt 0:00:00]} g4 {[%emt 0:00:00]} 62. Kh1 {[%emt 0:00:00]} g3 {[%emt 0:00:00]} 63. Kg1 {[%emt 0:00:00]} g2 {[%emt 0:00:00]} 0-1

[Event "NOR-ch Various 2019"]
[Site "Larvik"]
[Date "2019.07.09"]
[Round "4.8"]
[White "Sinnes, Daniel"]
[Black "Grondahl, David A"]
[Result "0-1"]
[ECO "B56"]
[WhiteElo "1609"]
[BlackElo "1730"]
[Annotator "NA"]
[PlyCount "72"]
[EventDate "2019.07.06"]
[EventType "swiss"]
[EventCountry "NOR"]
[SourceTitle "playchess.com"]
[Source "ChessBase"]
[SourceQuality "1"]
[TimeControl "40/5400+30:1800+30"]

1. e4 {[%emt 0:00:00]} c5 {[%emt 0:00:00]} 2. Nf3 {[%emt 0:00:12]} Nc6 {[%emt 0:00:00]} 3. d4 {[%emt 0:01:02]} cxd4 {[%emt 0:00:00]} 4. Nxd4 {[%emt 0:00:07]} Nf6 {[%emt 0:00:00]} 5. Nc3 {[%emt 0:00:25]} e5 {[%emt 0:00:06]} 6. Nde2 {[%emt 0:08:05]} Be7 {[%emt 0:11:48]} 7. g3 {[%emt 0:00:48]} d6 {[%emt 0:03:07]} 8. Bg2 {[%emt 0:01:08]} Be6 {[%emt 0:03:40]} 9. O-O {[%emt 0:00:53]} Nd7 {[%emt 0:07:23]} 10. Nd5 {[%emt 0:09:16]} O-O {[%emt 0:03:18]} 11. Nec3 {[%emt 0:07:08]} Nb6 {[%emt 0:04:31]} 12. f4 {[%emt 0:01:42]} Bxd5 {[%emt 0:02:27]} 13. exd5 {[%emt 0:02:54]} Nd4 {[%emt 0:00:53]} 14. Be3 {[%emt 0:02:16]} Nf5 {[%emt 0:02:56]} 15. Qd3 {[%emt 0:03:21]} Nxe3 {[%emt 0:01:03]} 16. Qxe3 {[%emt 0:00:04]} Nc4 {[%emt 0:03:19]} 17. Qe2 {[%emt 0:06:01]} Qb6+ {[%emt 0:00:37]} 18. Kh1 {[%emt 0:00:07]} Qxb2 {[%emt 0:07:31]} 19. Ne4 {[%emt 0:05:03]} Na3 {[%emt 0:04:02]} 20. fxe5 {[%emt 0:01:34]} Qxe5 {[%emt 0:02:13]} 21. c3 {[%emt 0:05:38]} a6 {[%emt 0:03:26]} 22. g4 {[%emt 0:00:16]} g6 {[%emt 0:01:19]} 23. Rae1 {[%emt 0:00:57]} Bh4 {[%emt 0:00:27]} 24. Rd1 {[%emt 0:01:03]} b5 {[%emt 0:02:13]} 25. Rd3 {[%emt 0:01:49]} Nc4 {[%emt 0:00:18]} 26. Rh3 {[%emt 0:01:01]} Be7 {[%emt 0:02:16]} 27. Bf3 {[%emt 0:05:11]} Rae8 {[%emt 0:02:26]} 28. Re1 {[%emt 0:02:19]} Bd8 {[%emt 0:04:01]} 29. Qg2 {[%emt 0:01:43]} Qf4 {[%emt 0:01:37]} 30. Qe2 {[%emt 0:03:02]} Nd2 {[%emt 0:06:55]} 31. Qd3 {[%emt 0:02:24]} Nxe4 {[%emt 0:03:05]} 32. Rxe4 {[%emt 0:01:24]} Qc1+ {[%emt 0:00:08]} 33. Kg2 {[%emt 0:00:22]} Bb6 {[%emt 0:00:28]} 34. Kg3 {[%emt 0:02:27]} Qg1+ {[%emt 0:00:40]} 35. Kh4 {[%emt 0:01:05]} Bd8+ {[%emt 0:00:21]} 36. g5 {[%emt 0:00:15]} Qxg5# {[%emt 0:00:06]} 0-1

[Event "NOR-ch Various 2019"]
[Site "Larvik"]
[Date "2019.07.09"]
[Round "4.9"]
[White "Johansen, Aleksander"]
[Black "Wullum, Robin"]
[Result "0-1"]
[ECO "D80"]
[WhiteElo "1518"]
[BlackElo "1452"]
[Annotator "NA"]
[PlyCount "158"]
[EventDate "2019.07.06"]
[EventType "swiss"]
[EventCountry "NOR"]
[SourceTitle "playchess.com"]
[Source "ChessBase"]
[SourceQuality "1"]
[TimeControl "40/5400+30:1800+30"]

1. d4 {[%emt 0:07:22]} Nf6 {[%emt 0:00:15]} 2. c4 {[%emt 0:04:12]} g6 {[%emt 0:00:16]} 3. Nc3 {[%emt 0:00:25]} d5 {[%emt 0:00:45]} 4. Bg5 {[%emt 0:00:25]} Ne4 {[%emt 0:01:06]} 5. h4 {[%emt 0:00:21]} Nxg5 {[%emt 0:00:28]} 6. hxg5 {[%emt 0:00:03]} c6 {[%emt 0:00:14]} 7. Nf3 {[%emt 0:03:31]} Bg7 {[%emt 0:00:24]} 8. e3 {[%emt 0:00:57]} Bg4 {[%emt 0:00:25]} 9. cxd5 {[%emt 0:02:53]} cxd5 {[%emt 0:00:04]} 10. Qb3 {[%emt 0:07:13]} Nd7 {[%emt 0:05:03]} 11. Qxd5 {[%emt 0:06:54]} O-O {[%emt 0:00:10]} 12. Bb5 {[%emt 0:11:48]} Qb6 {[%emt 0:05:24]} 13. Qe4 {[%emt 0:12:11]} Bf5 {[%emt 0:01:43]} 14. Qh4 {[%emt 0:01:05]} h5 {[%emt 0:00:09]} 15. gxh6 {[%emt 0:01:03]} Bf6 {[%emt 0:00:02]} 16. Ng5 {[%emt 0:11:15]} Rac8 {[%emt 0:07:59]} 17. O-O {[%emt 0:06:11]} Rxc3 {[%emt 0:04:36]} 18. Bxd7 {[%emt 0:02:45]} Bxd7 {[%emt 0:02:27]} 19. bxc3 {[%emt 0:00:54]} Qa5 {[%emt 0:00:20]} 20. f4 {[%emt 0:08:47]} Qxc3 {[%emt 0:00:32]} 21. Qe1 {[%emt 0:01:28]} Qd3 {[%emt 0:02:55]} 22. Rf2 {[%emt 0:02:33]} Bc6 {[%emt 0:02:04]} 23. Qe2 {[%emt 0:00:36]} Qc3 {[%emt 0:00:19]} 24. Qd2 {[%emt 0:00:35]} Qa3 {[%emt 0:03:12]} 25. Rb1 {[%emt 0:01:50]} Qd6 {[%emt 0:03:04]} 26. Qb4 {[%emt 0:02:14]} Qd5 {[%emt 0:00:33]} 27. Qc5 {[%emt 0:01:41]} Qd7 {[%emt 0:00:58]} 28. Nf3 {[%emt 0:01:08]} Qe6 {[%emt 0:09:28]} 29. Ng5 {[%emt 0:01:14]} Qxe3 {[%emt 0:00:20]} 30. Rb3 {[%emt 0:00:35]} Bxd4 {[%emt 0:04:38]} 31. Rxe3 {[%emt 0:00:17]} Bxc5 {[%emt 0:00:04]} 32. Ree2 {[%emt 0:00:14]} Rd8 {[%emt 0:17:57]} 33. h7+ {[%emt 0:00:32]} Kg7 {[%emt 0:00:43]} 34. h8=Q+ {[%emt 0:00:07]} Rxh8 {[%emt 0:00:13]} 35. Nf3 {[%emt 0:01:06]} Bxf3 {[%emt 0:01:00]} 36. gxf3 {[%emt 0:00:12]} Bxf2+ {[%emt 0:00:11]} 37. Rxf2 {[%emt 0:00:13]} Rc8 {[%emt 0:00:22]} 38. Kg2 {[%emt 0:00:18]} Kf6 {[%emt 0:00:26]} 39. Re2 {[%emt 0:00:25]} b5 {[%emt 0:00:22]} 40. Kg3 {[%emt 0:00:19]} a5 {[%emt 0:00:26]} 41. Re5 {[%emt 0:30:28]} Rc2 {[%emt 0:32:05]} 42. Rxb5 {[%emt 0:00:19]} Rxa2 {[%emt 0:00:11]} 43. Rb6+ {[%emt 0:00:46]} e6 {[%emt 0:00:06]} 44. Rb7 {[%emt 0:01:03]} a4 {[%emt 0:00:06]} 45. Ra7 {[%emt 0:00:26]} a3 {[%emt 0:00:06]} 46. Ra5 {[%emt 0:00:18]} Ra1 {[%emt 0:00:08]} 47. Kg2 {[%emt 0:00:13]} a2 {[%emt 0:00:12]} 48. Kh2 {[%emt 0:00:43]} Ke7 {[%emt 0:00:22]} 49. Kg2 {[%emt 0:00:30]} Kd6 {[%emt 0:00:11]} 50. Kh2 {[%emt 0:00:20]} Kc6 {[%emt 0:00:19]} 51. Kg2 {[%emt 0:00:37]} Kb6 {[%emt 0:00:09]} 52. Ra8 {[%emt 0:00:22]} Kc5 {[%emt 0:00:46]} 53. Ra4 {[%emt 0:00:58]} Kb5 {[%emt 0:00:10]} 54. Ra8 {[%emt 0:00:19]} Kb4 {[%emt 0:00:17]} 55. Ra7 {[%emt 0:01:11]} Kb3 {[%emt 0:00:31]} 56. Rb7+ {[%emt 0:00:07]} Kc3 {[%emt 0:00:20]} 57. Ra7 {[%emt 0:00:19]} Kd4 {[%emt 0:00:11]} 58. Ra5 {[%emt 0:00:48]} Ke3 {[%emt 0:02:01]} 59. Ra4 {[%emt 0:00:36]} f6 {[%emt 0:00:22]} 60. Re4+ {[%emt 0:00:21]} Kd3 {[%emt 0:00:08]} 61. Ra4 {[%emt 0:00:15]} e5 {[%emt 0:00:25]} 62. fxe5 {[%emt 0:00:10]} fxe5 {[%emt 0:00:08]} 63. Ra8 {[%emt 0:00:55]} g5 {[%emt 0:01:08]} 64. Ra3+ {[%emt 0:01:10]} Kd4 {[%emt 0:00:44]} 65. Ra4+ {[%emt 0:00:21]} Ke3 {[%emt 0:00:35]} 66. Re4+ {[%emt 0:00:21]} Kd3 {[%emt 0:00:17]} 67. Ra4 {[%emt 0:00:05]} Kc3 {[%emt 0:00:13]} 68. Ra8 {[%emt 0:00:35]} Kd4 {[%emt 0:03:53]} 69. Ra4+ {[%emt 0:00:26]} Kd5 {[%emt 0:00:05]} 70. Ra6 {[%emt 0:01:08]} Kc4 {[%emt 0:06:17]} 71. Ra8 {[%emt 0:00:00]} Kc3 {[%emt 0:00:00]} 72. Kh2 {[%emt 0:00:00]} Rd1 {[%emt 0:00:00]} 73. Rxa2 {[%emt 0:00:00]} Rd2+ {[%emt 0:00:00]} 74. Rxd2 {[%emt 0:00:00]} Kxd2 {[%emt 0:00:00]} 75. Kh1 {[%emt 0:00:00]} g4 {[%emt 0:00:00]} 76. Kg2 {[%emt 0:00:00]} gxf3+ {[%emt 0:00:00]} 77. Kxf3 {[%emt 0:00:00]} Kd3 {[%emt 0:00:00]} 78. Kf2 {[%emt 0:00:00]} e4 {[%emt 0:00:00]} 79. Ke1 {[%emt 0:00:00]} Ke3 {[%emt 0:00:00]} 0-1

[Event "NOR-ch Various 2019"]
[Site "Larvik"]
[Date "2019.07.09"]
[Round "4.10"]
[White "Dybvik, Bjorn Noralf"]
[Black "Roste, Stein"]
[Result "0-1"]
[ECO "B22"]
[WhiteElo "1577"]
[BlackElo "1321"]
[Annotator "NA"]
[PlyCount "138"]
[EventDate "2019.07.06"]
[EventType "swiss"]
[EventCountry "NOR"]
[SourceTitle "playchess.com"]
[Source "ChessBase"]
[SourceQuality "1"]
[TimeControl "40/5400+30:1800+30"]

1. e4 {[%emt 0:00:00]} c5 {[%emt 0:00:40]} 2. c3 {[%emt 0:00:00]} d5 {[%emt 0:02:01]} 3. exd5 {[%emt 0:00:33]} Qxd5 {[%emt 0:00:20]} 4. d4 {[%emt 0:01:08]} Nc6 {[%emt 0:03:32]} 5. Nf3 {[%emt 0:03:53]} Bg4 {[%emt 0:02:12]} 6. Be2 {[%emt 0:02:46]} Nf6 {[%emt 0:00:45]} 7. O-O {[%emt 0:01:43]} e6 {[%emt 0:01:07]} 8. h3 {[%emt 0:04:21]} Bf5 {[%emt 0:05:41]} 9. dxc5 {[%emt 0:09:49]} Qxd1 {[%emt 0:01:24]} 10. Rxd1 {[%emt 0:00:39]} Bxc5 {[%emt 0:00:31]} 11. Nd4 {[%emt 0:05:56]} Nxd4 {[%emt 0:07:32]} 12. cxd4 {[%emt 0:02:21]} Bb6 {[%emt 0:04:24]} 13. Bb5+ {[%emt 0:02:00]} Ke7 {[%emt 0:01:39]} 14. Nc3 {[%emt 0:04:42]} Rhd8 {[%emt 0:02:50]} 15. Be3 {[%emt 0:01:44]} a6 {[%emt 0:08:02]} 16. Ba4 {[%emt 0:02:57]} h6 {[%emt 0:03:02]} 17. Rac1 {[%emt 0:03:25]} Rac8 {[%emt 0:01:34]} 18. Bb3 {[%emt 0:03:42]} Ba7 {[%emt 0:04:43]} 19. a3 {[%emt 0:05:18]} b5 {[%emt 0:00:38]} 20. Ne2 {[%emt 0:03:28]} g5 {[%emt 0:04:55]} 21. Rc3 {[%emt 0:08:40]} Ne4 {[%emt 0:01:38]} 22. Rcc1 {[%emt 0:01:55]} Nd6 {[%emt 0:02:28]} 23. Ng3 {[%emt 0:02:41]} Bg6 {[%emt 0:02:15]} 24. Ne2 {[%emt 0:02:58]} Nc4 {[%emt 0:02:30]} 25. Bxc4 {[%emt 0:02:05]} Rxc4 {[%emt 0:00:20]} 26. Rxc4 {[%emt 0:02:49]} bxc4 {[%emt 0:00:08]} 27. Nc3 {[%emt 0:03:37]} Bd3 {[%emt 0:01:44]} 28. Kh2 {[%emt 0:09:58]} Bxd4 {[%emt 0:02:21]} 29. Bxd4 {[%emt 0:01:36]} Rxd4 {[%emt 0:00:08]} 30. Ne2 {[%emt 0:01:05]} Rd8 {[%emt 0:07:08]} 31. Nc3 {[%emt 0:00:29]} Bc2 {[%emt 0:05:45]} 32. Rxd8 {[%emt 0:01:23]} Kxd8 {[%emt 0:00:17]} 33. h4 {[%emt 0:02:20]} g4 {[%emt 0:03:41]} 34. Kg3 {[%emt 0:00:53]} h5 {[%emt 0:01:21]} 35. Kf4 {[%emt 0:00:37]} Kd7 {[%emt 0:01:23]} 36. Kg5 {[%emt 0:01:20]} Bg6 {[%emt 0:00:38]} 37. g3 {[%emt 0:01:08]} Kd6 {[%emt 0:00:26]} 38. Kf4 {[%emt 0:00:43]} e5+ {[%emt 0:01:43]} 39. Ke3 {[%emt 0:00:35]} f6 {[%emt 0:05:00]} 40. Na2 {[%emt 0:01:03]} a5 {[%emt 0:08:21]} 41. Nc3 {[%emt 0:30:59]} Bc2 {[%emt 0:04:05]} 42. Nb5+ {[%emt 0:00:00]} Kc6 {[%emt 0:06:14]} 43. Na7+ {[%emt 0:00:00]} Kc5 {[%emt 0:05:08]} 44. Kd2 {[%emt 0:00:00]} Bd3 {[%emt 0:01:18]} 45. Nc8 {[%emt 0:00:00]} Bh7 {[%emt 0:02:18]} 46. Ne7 {[%emt 0:00:00]} a4 {[%emt 0:02:00]} 47. Ke3 {[%emt 0:00:00]} e4 {[%emt 0:03:24]} 48. Nc8 {[%emt 0:00:00]} c3 {[%emt 0:02:19]} 49. bxc3 {[%emt 0:00:00]} Kc4 {[%emt 0:00:08]} 50. Nb6+ {[%emt 0:00:00]} Kb3 {[%emt 0:00:49]} 51. c4 {[%emt 0:00:00]} Kxa3 {[%emt 0:00:53]} 52. c5 {[%emt 0:00:00]} Kb4 {[%emt 0:03:55]} 53. Nxa4 {[%emt 0:01:12]} Kxa4 {[%emt 0:00:32]} 54. c6 {[%emt 0:00:33]} Kb5 {[%emt 0:02:37]} 55. c7 {[%emt 0:00:25]} Bf5 {[%emt 0:00:11]} 56. c8=Q {[%emt 0:00:54]} Bxc8 {[%emt 0:00:03]} 57. Kxe4 {[%emt 0:00:30]} Kc5 {[%emt 0:01:42]} 58. Ke3 {[%emt 0:01:09]} Kd5 {[%emt 0:00:26]} 59. Kd3 {[%emt 0:00:37]} Ke5 {[%emt 0:00:51]} 60. Ke3 {[%emt 0:00:21]} f5 {[%emt 0:00:21]} 61. f4+ {[%emt 0:01:48]} gxf3 {[%emt 0:00:50]} 62. Kxf3 {[%emt 0:00:17]} Bb7+ {[%emt 0:00:29]} 63. Ke3 {[%emt 0:00:36]} Bg2 {[%emt 0:00:28]} 64. Kf2 {[%emt 0:00:33]} Bh3 {[%emt 0:01:16]} 65. Ke3 {[%emt 0:00:33]} Bg4 {[%emt 0:00:25]} 66. Kf2 {[%emt 0:00:33]} Ke4 {[%emt 0:00:20]} 67. Kg2 {[%emt 0:00:36]} Ke3 {[%emt 0:00:11]} 68. Kg1 {[%emt 0:00:34]} Kf3 {[%emt 0:00:18]} 69. Kh2 {[%emt 0:00:24]} Kf2 {[%emt 0:00:09]} 0-1

[Event "NOR-ch Various 2019"]
[Site "Larvik"]
[Date "2019.07.09"]
[Round "4.11"]
[White "Nordlov, Jorgen"]
[Black "Skretteberg, Martin"]
[Result "1-0"]
[ECO "A07"]
[WhiteElo "1263"]
[BlackElo "1397"]
[Annotator "NA"]
[PlyCount "155"]
[EventDate "2019.07.06"]
[EventType "swiss"]
[EventCountry "NOR"]
[SourceTitle "playchess.com"]
[Source "ChessBase"]
[SourceQuality "1"]
[TimeControl "40/5400+30:1800+30"]

1. Nf3 {[%emt 0:00:00]} d5 {[%emt 0:00:54]} 2. g3 {[%emt 0:00:38]} Bg4 {[%emt 0:01:02]} 3. d4 {[%emt 0:01:03]} Nd7 {[%emt 0:02:50]} 4. Nc3 {[%emt 0:00:58]} Ngf6 {[%emt 0:01:32]} 5. Bf4 {[%emt 0:01:18]} a6 {[%emt 0:04:30]} 6. Bg2 {[%emt 0:01:18]} e6 {[%emt 0:01:37]} 7. a3 {[%emt 0:00:15]} Nb6 {[%emt 0:03:43]} 8. Ne5 {[%emt 0:02:07]} Bd6 {[%emt 0:04:38]} 9. h3 {[%emt 0:03:54]} Bh5 {[%emt 0:02:37]} 10. g4 {[%emt 0:01:55]} Bg6 {[%emt 0:00:14]} 11. Bg5 {[%emt 0:05:05]} Be7 {[%emt 0:04:59]} 12. Nxg6 {[%emt 0:06:47]} hxg6 {[%emt 0:00:52]} 13. Bf4 {[%emt 0:01:09]} Nh7 {[%emt 0:07:01]} 14. e4 {[%emt 0:03:30]} Bd6 {[%emt 0:04:57]} 15. e5 {[%emt 0:01:54]} Be7 {[%emt 0:00:20]} 16. h4 {[%emt 0:00:33]} Qd7 {[%emt 0:05:35]} 17. g5 {[%emt 0:01:53]} Nf8 {[%emt 0:02:30]} 18. h5 {[%emt 0:04:09]} gxh5 {[%emt 0:02:40]} 19. Rxh5 {[%emt 0:00:22]} Ng6 {[%emt 0:01:55]} 20. Rxh8+ {[%emt 0:01:24]} Nxh8 {[%emt 0:00:04]} 21. Bd2 {[%emt 0:02:33]} Nc4 {[%emt 0:03:38]} 22. Bc1 {[%emt 0:01:19]} Qc6 {[%emt 0:04:53]} 23. Qd3 {[%emt 0:03:47]} Ng6 {[%emt 0:01:25]} 24. f4 {[%emt 0:07:53]} O-O-O {[%emt 0:02:08]} 25. f5 {[%emt 0:02:20]} Nh4 {[%emt 0:09:49]} 26. Bh3 {[%emt 0:02:55]} Nxf5 {[%emt 0:01:46]} 27. Bxf5 {[%emt 0:01:29]} exf5 {[%emt 0:00:16]} 28. Qxf5+ {[%emt 0:00:29]} Qe6 {[%emt 0:00:27]} 29. Qxe6+ {[%emt 0:02:30]} fxe6 {[%emt 0:00:26]} 30. Ne2 {[%emt 0:03:57]} Rh8 {[%emt 0:03:51]} 31. Kf2 {[%emt 0:03:06]} Rh2+ {[%emt 0:04:50]} 32. Kf3 {[%emt 0:00:19]} Kd7 {[%emt 0:00:43]} 33. Bf4 {[%emt 0:01:33]} b5 {[%emt 0:04:37]} 34. Bxh2 {[%emt 0:01:10]} Bxg5 {[%emt 0:00:56]} 35. Bf4 {[%emt 0:00:41]} Be7 {[%emt 0:02:08]} 36. b4 {[%emt 0:01:35]} Nb6 {[%emt 0:01:33]} 37. Nc1 {[%emt 0:01:33]} g5 {[%emt 0:00:54]} 38. Bg3 {[%emt 0:00:46]} Ke8 {[%emt 0:00:04]} 39. Kg4 {[%emt 0:00:37]} Nc4 {[%emt 0:00:10]} 40. Bf2 {[%emt 0:02:16]} Kf7 {[%emt 0:00:08]} 41. Nb3 {[%emt 0:31:03]} Kg6 {[%emt 0:30:54]} 42. Nc5 {[%emt 0:05:51]} Bxc5 {[%emt 0:01:00]} 43. bxc5 {[%emt 0:00:28]} Nd2 {[%emt 0:01:15]} 44. a4 {[%emt 0:01:43]} b4 {[%emt 0:00:22]} 45. Be3 {[%emt 0:01:57]} Ne4 {[%emt 0:00:21]} 46. a5 {[%emt 0:01:51]} Nc3 {[%emt 0:02:39]} 47. Bxg5 {[%emt 0:02:03]} Nb5 {[%emt 0:00:01]} 48. Be3 {[%emt 0:00:58]} Kf7 {[%emt 0:00:08]} 49. Rb1 {[%emt 0:01:26]} Na3 {[%emt 0:00:22]} 50. Rxb4 {[%emt 0:02:24]} Nxc2 {[%emt 0:00:08]} 51. Rb3 {[%emt 0:00:30]} Ke7 {[%emt 0:00:14]} 52. Bf2 {[%emt 0:01:39]} Kd7 {[%emt 0:00:12]} 53. Kg5 {[%emt 0:02:24]} Na1 {[%emt 0:00:43]} 54. Rb2 {[%emt 0:00:29]} Ke7 {[%emt 0:00:56]} 55. Rb7 {[%emt 0:01:06]} Kd7 {[%emt 0:00:15]} 56. Kf6 {[%emt 0:01:16]} Nc2 {[%emt 0:00:40]} 57. Rb3 {[%emt 0:01:36]} Na1 {[%emt 0:00:26]} 58. Rb2 {[%emt 0:00:20]} c6 {[%emt 0:01:41]} 59. Kg5 {[%emt 0:01:07]} Kc7 {[%emt 0:00:24]} 60. Kf4 {[%emt 0:00:50]} Kd7 {[%emt 0:01:17]} 61. Ke3 {[%emt 0:01:42]} Ke7 {[%emt 0:00:02]} 62. Kd2 {[%emt 0:01:28]} Kf7 {[%emt 0:00:22]} 63. Rb6 {[%emt 0:00:41]} Kg6 {[%emt 0:00:25]} 64. Kc3 {[%emt 0:00:30]} Kf5 {[%emt 0:00:15]} 65. Kb2 {[%emt 0:00:34]} Ke4 {[%emt 0:00:25]} 66. Kxa1 {[%emt 0:00:37]} Kf3 {[%emt 0:00:06]} 67. Rxa6 {[%emt 0:00:30]} Kxf2 {[%emt 0:00:08]} 68. Rxc6 {[%emt 0:00:29]} Ke3 {[%emt 0:00:07]} 69. Rxe6 {[%emt 0:00:46]} Kxd4 {[%emt 0:00:10]} 70. c6 {[%emt 0:00:33]} Ke3 {[%emt 0:00:06]} 71. c7 {[%emt 0:00:38]} d4 {[%emt 0:00:09]} 72. c8=Q {[%emt 0:00:13]} d3 {[%emt 0:00:08]} 73. Rd6 {[%emt 0:00:55]} d2 {[%emt 0:00:29]} 74. Qc3+ {[%emt 0:00:30]} Ke2 {[%emt 0:00:09]} 75. Qxd2+ {[%emt 0:00:21]} Kf3 {[%emt 0:00:08]} 76. Qf4+ {[%emt 0:00:23]} Ke2 {[%emt 0:00:13]} 77. Rd2+ {[%emt 0:00:25]} Ke1 {[%emt 0:00:14]} 78. Qf2# {[%emt 0:00:06]} 1-0